[Event "7th Sharjah Masters 2024"]
[Site "Sharjah"]
[Date "2024.05.16"]
[Round "3.38"]
[White "Avila Pavas, Santiago"]
[Black "Moroni, Luca Jr"]
[Result "0-1"]
[ECO "B30"]
[WhiteElo "2516"]
[BlackElo "2581"]
[Annotator "TA"]
[PlyCount "104"]
[EventDate "2024.05.13"]
[EventType "swiss"]
[EventCountry "UAE"]
[SourceTitle "playchess.com"]
[Source "ChessBase"]
[SourceQuality "1"]
[TimeControl "5400+30"]

{[%evp 39,104,27,20,0,0,0,0,2,1,8,7,3,26,35,22,20,32,19,14,16,27,14,20,0,0,-8,-4,-87,-42,-144,-150,-164,-166,-169,-165,-158,-160,-178,-166,-203,-204,-271,-232,-227,-214,-286,-300,-289,-247,-201,0,-279,-100,-87,-109,-106,-95,-229,-221,-361,-352,-321,-359,-425,-440,-789,-777]} 1. e4 {[%emt 0:00:05]} c5 {[%emt 0:00:03]} 2. Nf3 {[%emt 0:00:16]} Nc6 {[%emt 0:00:05]} 3. Bb5 {[%emt 0:02:14]} Qc7 {[%emt 0:00:04]} 4. O-O {[%emt 0:05:52]} a6 {[%emt 0:04:18]} 5. Bxc6 {[%emt 0:01:27]} dxc6 {[%emt 0:00:06]} 6. h3 {[%emt 0:00:51]} e5 {[%emt 0:00:23] B30: Sicilian: 2...Nc6 3 Bb5, lines without ...g6.} 7. a4 {[%emt 0:10:07]} a5 {[%emt 0:03:57]} 8. Na3 {[%emt 0:06:59]} Ne7 {[%emt 0:02:07]} 9. c3 $146 {[%emt 0:07:23]} ({Predecessor:} 9. Nc4 Ng6 10. d3 Be7 11. c3 Be6 12. Ng5 Bxg5 13. Bxg5 f6 14. Be3 Bxc4 15. dxc4 {1-0 Maghsoodloo,P (2676)-Baum,J (2373) Titled Tuesday intern op 7th July blitz 2020 (1)}) 9... Ng6 {[%emt 0:06:54]} 10. d4 {[%emt 0:00:58]} cxd4 {[%emt 0:11:54]} 11. cxd4 {[%emt 0:00:17]} exd4 {[%emt 0:00:47]} 12. Qxd4 {[%emt 0:00:33]} Be6 {[%emt 0:03:00]} 13. Ng5 {[%emt 0:13:59]} Bd7 {[%emt 0:05:53]} 14. Rd1 {[%emt 0:11:16]} Rd8 {[%emt 0:14:15]} 15. Qc4 {[%emt 0:22:32]} Ne5 {[%emt 0:09:04]} 16. Bf4 {[%emt 0:00:24]} Nf3+ {[%emt 0:14:08]} 17. Nxf3 {[%emt 0:00:32]} Qxf4 {[%emt 0:00:04]} 18. Qc3 {[%emt 0:07:47]} Be7 {[%emt 0:03:06]} 19. Nc4 {[%emt 0:01:22]} O-O {[%emt 0:02:57]} 20. Nxa5 {[%emt 0:00:08]} (20. Qxa5 Bxh3 (20... Qxe4 21. Nd6 $14) 21. Rxd8 Bxd8 $17 (21... Rxd8 22. Nce5 $15)) 20... Bc8 {[%emt 0:00:25]} 21. Qe5 {[%emt 0:00:50]} Qxe5 {[%emt 0:01:52]} 22. Nxe5 {[%emt 0:00:05]} f6 {[%emt 0:00:18]} 23. Nf3 {[%emt 0:01:04]} Bb4 {[%emt 0:00:45]} 24. Nc4 {[%emt 0:01:05]} Be6 {[%emt 0:00:48]} 25. Ne3 {[%emt 0:00:17]} Bb3 {[%emt 0:01:35]} 26. Rxd8 {[%emt 0:00:58]} Rxd8 {[%emt 0:00:01]} 27. a5 {[%emt 0:00:07]} Bc5 {[%emt 0:05:09]} 28. a6 {[%emt 0:00:37]} Ra8 {[%emt 0:00:14]} 29. Rc1 {[%emt 0:01:18]} (29. axb7 Rxa1+ 30. Kh2 Bd6+ 31. g3 Ra7 $19) 29... b6 {[%emt 0:00:01]} 30. Ra1 {[%emt 0:00:30]} Ra7 {[%emt 0:01:40]} 31. Nf5 {[%emt 0:02:01]} Bc2 {[%emt 0:00:47]} 32. Ng3 {[%emt 0:01:00]} Bd3 {[%emt 0:00:53]} 33. Nh4 {[%emt 0:01:34]} (33. Rd1 $11 {keeps the balance.} Bxa6 34. Ra1) 33... Kf7 {[%emt 0:01:39]} (33... Bxa6 34. Nf3 $11) 34. Nhf5 {[%emt 0:00:29] [#]} (34. Rd1 $15 Bxa6 35. Ra1) 34... g6 $1 $17 {[%emt 0:00:51]} (34... Bxa6 35. Ne2 $17 (35. Nh5 g6 $17)) (34... Rxa6 35. Rd1 Bc2 36. Rd2 $14 (36. Rd7+ Ke6 $11)) 35. Rd1 {[%emt 0:00:32]} Bxa6 {[%emt 0:01:05]} 36. Nh6+ {[%emt 0:00:26]} Kg7 {[%emt 0:01:50]} 37. Ng4 {[%emt 0:00:01]} h5 {[%emt 0:00:29]} 38. Ne3 {[%emt 0:00:01]} Bb5 {[%emt 0:00:40]} 39. h4 {[%emt 0:00:04]} Kf7 {[%emt 0:00:11]} 40. Rd8 {[%emt 0:00:49]} Ra1+ {[%emt 0:02:24]} 41. Kh2 {[%emt 0:00:04]} Rb1 {[%emt 0:00:03]} 42. Rd7+ {[%emt 0:00:26]} Ke6 {[%emt 0:00:14]} 43. Rg7 {[%emt 0:00:52]} Bf8 {[%emt 0:00:57]} 44. Rb7 {[%emt 0:00:25]} Bc5 {[%emt 0:01:35]} (44... Rxb2 45. f4 $17) 45. Rg7 {[%emt 0:00:04]} Bxe3 $2 {[%emt 0:00:30]} (45... Rxb2 $19 46. Rxg6 Rxf2) 46. fxe3 $17 {[%emt 0:00:04]} Rxb2 {[%emt 0:00:03]} 47. Rxg6 {[%emt 0:00:09]} Be2 {[%emt 0:00:44]} 48. Nf5 {[%emt 0:00:59]} (48. Rh6 $17) 48... Ke5 $19 {[%emt 0:00:21]} 49. Ne7 {[%emt 0:02:01]} (49. Rg8 {might work better.} Kxe4 50. Ng3+ Kxe3 51. Re8+ Kd3 52. Nxe2 Rxe2 53. Rxe2 Kxe2 54. g4 hxg4 55. Kg3) 49... Rc2 $19 {[%emt 0:01:11]} ({Weaker is} 49... Kxe4 50. Nxc6 b5 (50... Kxe3 51. Rxf6 b5 52. Rf8 $17) 51. Nd4 $17) ({Don't take} 49... c5 50. Nd5 $19) 50. Rg8 {[%emt 0:01:04]} Kxe4 {[%emt 0:01:35]} 51. Rc8 {[%emt 0:00:30]} c5 {[%emt 0:01:01]} (51... Kxe3 52. Nf5+ Kd2 53. Rd8+ Ke1 54. Re8 $19) 52. Kg3 {[%emt 0:00:30]} (52. Ng8 $142 Kxe3 53. Nxf6) 52... Bf1 {[%emt 0:00:14]} (52... Kxe3 $2 53. Nd5+ Ke4 54. Nxb6 $17) 0-1

[Event "7th Sharjah Masters 2024"]
[Site "Sharjah"]
[Date "2024.05.16"]
[Round "3.39"]
[White "Gurel, Ediz"]
[Black "Cardoso Cardoso, Jose Gabriel"]
[Result "1-0"]
[ECO "B94"]
[WhiteElo "2578"]
[BlackElo "2497"]
[Annotator "TA"]
[PlyCount "65"]
[EventDate "2024.05.13"]
[EventType "swiss"]
[EventCountry "UAE"]
[SourceTitle "playchess.com"]
[Source "ChessBase"]
[SourceQuality "1"]
[TimeControl "5400+30"]

{[%evp 20,65,0,0,0,0,5,-83,0,0,0,0,0,0,0,0,0,0,0,0,0,0,0,0,0,0,26,10,16,12,95,101,268,265,289,298,244,127,128,142,84,141,417,412,376,178,29993,-50]} 1. e4 {[%emt 0:00:04]} c5 {[%emt 0:00:12]} 2. Nf3 {[%emt 0:00:12]} d6 {[%emt 0:00:08]} 3. d4 {[%emt 0:00:06]} cxd4 {[%emt 0:00:08]} 4. Nxd4 {[%emt 0:00:04]} Nf6 {[%emt 0:00:07]} 5. Nc3 {[%emt 0:00:06]} a6 {[%emt 0:00:06]} 6. Bg5 {[%emt 0:00:07]} Nbd7 {[%emt 0:00:08]} 7. Bc4 {[%emt 0:00:09]} Qb6 {[%emt 0:00:19] B94: Sicilian Najdorf: 6 Bg5 Nbd7.} 8. Bb3 {[%emt 0:00:06]} e6 {[%emt 0:00:10]} 9. Bxf6 {[%emt 0:00:06]} Nxf6 {[%emt 0:00:08]} 10. Qd2 {[%emt 0:00:05]} Nd7 {[%emt 0:00:44] 10...Nd7 scores better than 10...Be7.} 11. O-O-O {[%emt 0:00:07]} Nc5 {[%emt 0:00:12]} 12. Rhe1 {[%emt 0:00:10]} Bd7 {[%emt 0:08:45] [#]} 13. Nf5 {[%emt 0:00:10]} (13. f4 $1 $11) 13... O-O-O {[%emt 0:08:11]} (13... exf5 $6 14. exf5+ Kd8 (14... Be7 $2 15. Rxe7+ Kd8 16. Rxf7 $18) 15. Bxf7 $11) (13... Nxb3+ $17 14. cxb3 exf5) 14. Nxd6+ $11 {[%emt 0:00:18]} Bxd6 {[%emt 0:00:08]} (14... Qxd6 $6 15. Qxd6 Bxd6 16. Rxd6 $16) 15. Qxd6 {[%emt 0:00:05]} Nxb3+ $1 {[%emt 0:00:07]} 16. axb3 {[%emt 0:00:03]} Qxf2 {[%emt 0:00:07]} 17. Rf1 {[%emt 0:00:04]} Qe3+ {[%emt 0:04:45]} 18. Kb1 {[%emt 0:00:13]} Bb5 $1 {[%emt 0:43:04]} 19. Nxb5 {[%emt 0:00:06]} Rxd6 {[%emt 0:00:06]} 20. Nxd6+ {[%emt 0:00:04]} Kb8 {[%emt 0:00:08]} 21. Rxf7 {[%emt 0:00:05]} Rd8 {[%emt 0:00:15]} 22. Ka2 {[%emt 0:03:59]} Qe2 {[%emt 0:04:36]} (22... Qb6 $2 23. Nc4 $18 (23. Rxb7+ $2 Qxb7 24. Nxb7 Rxd1 $19)) 23. Rd4 {[%emt 0:00:38]} (23. Rxb7+ $2 Ka8 24. Rd4 Rxd6 $19 (24... Qxc2 $2 25. Rb6 $18)) 23... Ka8 $146 {[%emt 0:12:41]} ({Predecessor:} 23... Qh5 24. Rxb7+ Ka8 25. Rdb4 Qc5 26. R7b6 Qa5+ 27. Kb1 Ka7 28. Rb7+ Ka8 29. c3 Qh5 30. R4b6 Qe2 31. Ka2 Qd3 32. e5 {1-0 Fawzy,A (2490)-Shahil,D (2400) Guwahati op 1st 2022 (4)}) 24. Rxg7 {[%emt 0:17:28]} (24. Rxb7 $2 Rxd6 (24... Qxc2 $2 25. Rb6 $18) 25. Rdb4 Rd8 $19 (25... Qxg2 26. Rb8+ Ka7 27. R4b7#)) 24... Qh5 {[%emt 0:01:14]} (24... Qxc2 $11 {remains equal.} 25. Rc4 (25. Rxb7 $2 Rxd6 26. Rxd6 Kxb7 $19) 25... Qd2 26. Nxb7 Rd7 27. Rxd7 Qxd7) 25. Nb5 $1 $16 {[%emt 0:01:11]} (25. Rxb7 $2 Rxd6 (25... Qxh2 $2 26. Rb6 $18) 26. Rxd6 Kxb7 27. Rxe6 Qxh2 28. Re7+ Kc8 $19) 25... Rf8 $2 {[%emt 0:06:12]} (25... Rc8 $16 26. Na3 Qe5) 26. Na3 $1 $18 {[%emt 0:03:50]} (26. Nc7+ Kb8 27. Rgd7 (27. Nxe6 Qa5+ 28. Ra4 Qe5 $15) 27... Rf7 28. Rxf7 (28. Nxe6 Qa5+ 29. Kb1 Rf1+ 30. Rd1 Qb5 $11) 28... Qxf7 $17) 26... Qxh2 {[%emt 0:02:49]} 27. Nc4 {[%emt 0:01:26]} Qh4 {[%emt 0:02:27]} 28. c3 {[%emt 0:09:05]} (28. Rdd7 $18 {Threatening mate with Nb6+.} Qxe4 29. Na5) 28... Rd8 $16 {[%emt 0:03:07]} 29. Nb6+ $1 {[%emt 0:01:08]} Ka7 {[%emt 0:00:27] [#]} 30. Rb4 $1 {[%emt 0:00:06]} a5 $2 {[%emt 0:01:16][%mdl 8192] [#]} (30... Rb8 $16) 31. Rb5 $1 $18 {[%emt 0:00:05]} ({But not} 31. g3 $2 Qh1 $19) 31... Qxe4 {[%emt 0:00:13]} 32. Nc4 {[%emt 0:02:48]} (32. Rxa5+ Kxb6 33. Ra4 Qd5 34. Rb4+ Ka7 35. Rxh7 Rd6 (35... Qxg2 $2 36. Ra4+ Kb8 37. Rb4 $19) 36. Ra4+ Ra6 37. Rxa6+ Kxa6 $19) ({Weaker is} 32. Nd7 Rxd7 33. Rxd7 Qxg2 34. Rxa5+ Kb6 $18) (32. Na4 $142 Qc6 33. Rxa5+ Kb8 34. Nc5) 32... a4 $2 {[%emt 0:02:29]} (32... Qc6 $18 33. Rxa5+ Kb8 34. Rxh7 Rg8) 33. Ra5+ {[%emt 0:00:53]} 1-0

[Event "7th Sharjah Masters 2024"]
[Site "Sharjah"]
[Date "2024.05.16"]
[Round "3.40"]
[White "Dronavalli, Harika"]
[Black "Peralta, Fernando"]
[Result "1/2-1/2"]
[ECO "E38"]
[WhiteElo "2504"]
[BlackElo "2575"]
[Annotator "TA"]
[PlyCount "58"]
[EventDate "2024.05.13"]
[EventType "swiss"]
[EventCountry "UAE"]
[SourceTitle "playchess.com"]
[Source "ChessBase"]
[SourceQuality "1"]
[TimeControl "5400+30"]

{[%evp 20,58,-14,-11,-12,-13,-11,-42,-8,-10,-6,-19,-11,-21,0,-5,-9,-8,-6,-6,-2,-4,0,0,0,-8,0,0,0,0,0,-16,-16,-16,-8,-16,-16,-15,-15,-16,0]} 1. d4 {[%emt 0:00:07]} Nf6 {[%emt 0:00:16]} 2. c4 {[%emt 0:00:07]} e6 {[%emt 0:00:08]} 3. Nc3 {[%emt 0:00:09]} Bb4 {[%emt 0:00:56]} 4. Qc2 {[%emt 0:00:11]} d6 {[%emt 0:00:30][%cal Bd7d6,Bd6d5][%mdl 32]} 5. e3 {[%emt 0:00:30]} c5 {[%emt 0:00:30]} 6. Nf3 {[%emt 0:00:30]} O-O {[%emt 0:00:30]} 7. Bd3 {[%emt 0:00:30]} d5 {[%emt 0:00:30]} 8. a3 {[%emt 0:00:30]} Bxc3+ {[%emt 0:00:30]} 9. Qxc3 {[%emt 0:00:30]} cxd4 {[%emt 0:00:30]} 10. exd4 {[%emt 0:00:30]} dxc4 {[%emt 0:00:30]} 11. Bxc4 {[%emt 0:00:30]} b6 {[%emt 0:00:30]} 12. Bg5 {[%emt 0:00:30]} Bb7 {[%emt 0:00:30]} 13. Qd3 {[%emt 0:00:30] Prevents Ne4} Nbd7 {[%emt 0:00:30] Black is slightly better.} 14. O-O {[%emt 0:00:30] The position is equal.} Rc8 {[%emt 0:00:30]} 15. Rac1 {[%emt 0:00:30]} h6 {[%emt 0:00:30]} 16. Bd2 {[%emt 0:00:30]} Nd5 {[%emt 0:00:30]} 17. Ne5 {[%emt 0:00:30]} Nxe5 {[%emt 0:00:30]} 18. dxe5 {[%emt 0:00:30]} Qh4 {[%emt 0:00:30]} 19. Bxd5 {[%emt 0:00:30]} Bxd5 {[%emt 0:00:30]} 20. Qg3 {[%emt 0:00:30]} Qh5 {[%emt 0:00:30]} (20... Qxg3 {simplifies} 21. hxg3 Bc4 22. Rfd1 Bb3) 21. h3 {[%emt 0:00:30]} Rfd8 {[%emt 0:00:30]} 22. Bf4 {[%emt 0:00:30]} Bb7 {[%emt 0:00:30]} 23. Kh2 {[%emt 0:00:30]} Kh7 {[%emt 0:00:30]} 24. Rxc8 {[%emt 0:00:30]} Rxc8 {[%emt 0:00:30]} 25. Qd3+ {[%emt 0:00:30]} Qg6 {[%emt 0:00:30]} 26. Qxg6+ {[%emt 0:00:30]} Kxg6 {[%emt 0:00:30]} 27. Rc1 {[%emt 0:00:30] Dodges Rc2} Rxc1 {[%emt 0:00:30]} 28. Bxc1 {[%emt 0:00:30]} Kf5 {[%emt 0:00:30]} 29. Bd2 {[%emt 0:00:30]} g6 {[%emt 0:00:30] Not much happened in this game.   Weighted Error Value: White=0.05 (flawless) /Black=0.05 (flawless) .  Inaccurate:     	White=1     	Black=1      OK:         	White=9     	Black=6} 1/2-1/2

[Event "7th Sharjah Masters 2024"]
[Site "Sharjah"]
[Date "2024.05.16"]
[Round "3.41"]
[White "Seemann, Jakub"]
[Black "Can, Emre"]
[Result "1-0"]
[ECO "B81"]
[WhiteElo "2475"]
[BlackElo "2549"]
[Annotator "TA"]
[PlyCount "144"]
[EventDate "2024.05.13"]
[EventType "swiss"]
[EventCountry "UAE"]
[SourceTitle "playchess.com"]
[Source "ChessBase"]
[SourceQuality "1"]
[TimeControl "5400+30"]

{[%evp 58,144,33,29,33,28,32,29,34,25,26,26,23,8,8,0,0,0,16,0,0,0,0,0,0,0,0,2,14,0,0,0,0,0,0,0,0,0,0,0,0,0,0,0,18,18,18,18,18,18,88,83,143,143,195,70,80,0,200,175,762,715,2101,2696,29953,29959,29965,29968,29966,29969,29965,29968,29966,29965,29968,29963,29972,29973,29971,29974,29975,29976,29973,29968,29967,29965,29968,29968,29960]} 1. e4 {[%emt 0:00:06]} c5 {[%emt 0:00:10]} 2. Nf3 {[%emt 0:00:04]} d6 {[%emt 0:00:20]} 3. d4 {[%emt 0:00:05]} cxd4 {[%emt 0:00:07]} 4. Nxd4 {[%emt 0:00:04]} Nf6 {[%emt 0:00:14]} 5. Nc3 {[%emt 0:00:05]} a6 {[%emt 0:00:06]} 6. h3 {[%emt 0:00:06]} e6 {[%emt 0:01:09]} 7. g4 {[%emt 0:00:04]} d5 {[%emt 0:01:13]} 8. exd5 {[%emt 0:01:18]} Nxd5 {[%emt 0:00:30]} 9. Nde2 {[%emt 0:00:07]} h5 {[%emt 0:00:06]} 10. Nxd5 {[%emt 0:01:13]} exd5 {[%emt 0:00:16]} 11. Qd3 {[%emt 0:00:46]} hxg4 {[%emt 0:00:57]} 12. Bd2 {[%emt 0:01:40]} Nd7 {[%emt 0:00:06]} 13. Qxd5 {[%emt 0:08:12]} Qb6 {[%emt 0:08:43]} 14. O-O-O {[%emt 0:13:05]} Nf6 {[%emt 0:08:19]} 15. Qe5+ {[%emt 0:10:03]} Qe6 {[%emt 0:10:35]} 16. Qxe6+ {[%emt 0:05:26]} Bxe6 {[%emt 0:00:12]} 17. Nf4 {[%emt 0:01:51]} Bc5 {[%emt 0:03:55]} 18. Bg2 {[%emt 0:11:27]} O-O-O {[%emt 0:07:44]} 19. Nxe6 {[%emt 0:01:03]} fxe6 {[%emt 0:00:09]} 20. Rdf1 {[%emt 0:12:01]} Kc7 {[%emt 0:07:14]} 21. Bf4+ {[%emt 0:08:17]} Kb6 {[%emt 0:08:34]} 22. Re1 {[%emt 0:03:45]} Rde8 {[%emt 0:02:18]} 23. hxg4 {[%emt 0:07:47]} Rxh1 {[%emt 0:02:18]} 24. Rxh1 {[%emt 0:00:13]} Nxg4 {[%emt 0:03:36]} 25. Rh3 {[%emt 0:04:11]} Ka7 {[%emt 0:05:30]} 26. Rc3 {[%emt 0:06:00]} Bb6 {[%emt 0:11:06]} 27. Bc7 {[%emt 0:01:40]} Re7 {[%emt 0:05:41]} 28. Bxb6+ {[%emt 0:00:03]} Kxb6 {[%emt 0:00:05]} 29. Rc4 {[%emt 0:00:38]} Nf6 {[%emt 0:00:18]} (29... Nxf2 $2 30. Rf4 $18) 30. Rb4+ {[%emt 0:00:05]} Ka7 $1 {[%emt 0:00:06]} 31. Kd2 {[%emt 0:00:54]} Nd5 {[%emt 0:01:32]} 32. Rd4 {[%emt 0:01:56]} Rf7 {[%emt 0:01:42]} 33. Bxd5 {[%emt 0:00:06]} exd5 {[%emt 0:00:10]} 34. Ke3 {[%emt 0:00:11]} Re7+ {[%emt 0:00:50]} 35. Kf3 {[%emt 0:01:13]} Re5 {[%emt 0:01:33]} 36. Rd2 {[%emt 0:00:32]} Kb6 {[%emt 0:01:08]} 37. Kf4 {[%emt 0:00:24]} Rh5 {[%emt 0:00:12]} 38. Re2 {[%emt 0:00:58]} Rh4+ {[%emt 0:01:04]} 39. Ke5 {[%emt 0:01:16]} Kc5 {[%emt 0:01:31]} 40. f4 {[%emt 0:00:09]} Rh5+ {[%emt 0:01:47]} 41. Ke6 {[%emt 0:00:26]} Rh6+ {[%emt 0:00:19]} 42. Kf5 {[%emt 0:00:21]} Kd6 {[%emt 0:00:52]} 43. c3 {[%emt 0:00:51]} a5 {[%emt 0:00:36]} 44. a4 {[%emt 0:00:59]} Rh5+ {[%emt 0:02:05]} 45. Kg6 {[%emt 0:00:17]} Rh4 {[%emt 0:00:05]} 46. f5 {[%emt 0:00:54]} (46. Kxg7 $2 Rg4+ (46... Rxf4 $2 47. b3 $19) 47. Kh7 Rxf4 $19) 46... Rg4+ {[%emt 0:00:15]} 47. Kh5 {[%emt 0:00:30]} (47. Kf7 Rg5 (47... Rf4 48. Re6+ Kd7 49. Re5 $11) 48. Rf2 (48. Re6+ Kc5 $15) 48... Ke5) 47... Re4 {[%emt 0:02:23]} 48. Rg2 {[%emt 0:00:23]} Ke7 {[%emt 0:02:41]} ({Much weaker is} 48... Rxa4 $6 49. Rxg7 b5 50. Rg2 $16) 49. Kg6 {[%emt 0:00:38]} Kf8 {[%emt 0:00:06]} 50. Rd2 {[%emt 0:00:30]} Rg4+ {[%emt 0:00:45]} 51. Kh5 {[%emt 0:00:04]} Rxa4 {[%emt 0:00:06]} 52. Rxd5 {[%emt 0:00:04]} Ra1 {[%emt 0:00:44]} 53. Rb5 {[%emt 0:00:37]} Kf7 {[%emt 0:00:18]} (53... Ke7 $11 {remains equal.}) 54. Kg5 $1 $16 {[%emt 0:00:39]} ({But not} 54. Rxb7+ $6 Kf6 $11) 54... a4 {[%emt 0:01:04]} (54... Rg1+ $142 55. Kf4 g5+ 56. fxg6+ Rxg6) 55. Rxb7+ $16 {[%emt 0:00:04]} Kf8 {[%emt 0:00:04] [#]} 56. Rb8+ {[%emt 0:01:10]} ({White must play} 56. Kf4 $1 $18) 56... Kf7 {[%emt 0:00:10]} 57. Rb7+ {[%emt 0:00:01]} (57. c4 $16) 57... Kf8 $1 $18 {[%emt 0:00:07] [#]} 58. Kf4 $1 {[%emt 0:00:44]} a3 $2 {[%emt 0:00:03]} (58... Rc1 59. Ra7 Rb1) 59. bxa3 $18 {[%emt 0:00:04]} Rxa3 {[%emt 0:00:04]} 60. c4 {[%emt 0:00:43]} Ra6 {[%emt 0:00:04]} 61. Ke5 {[%emt 0:00:17]} Ra5+ {[%emt 0:03:07]} 62. Ke6 {[%emt 0:00:21]} Ra6+ {[%emt 0:00:02]} 63. Kd7 {[%emt 0:01:06]} Ra5 {[%emt 0:00:27]} 64. Rb5 {[%emt 0:00:27]} Ra7+ {[%emt 0:00:11]} 65. Kc6 {[%emt 0:00:54]} Ra6+ {[%emt 0:00:11]} 66. Rb6 {[%emt 0:00:21]} Ra5 {[%emt 0:00:44]} 67. c5 {[%emt 0:00:25]} Ke7 {[%emt 0:00:21]} 68. Rb5 {[%emt 0:00:38]} Ra1 {[%emt 0:00:33]} 69. Kb7 {[%emt 0:01:28]} Rc1 {[%emt 0:00:20]} 70. c6 {[%emt 0:00:00]} Kd6 {[%emt 0:00:06]} 71. Rb2 {[%emt 0:00:00]} Ke5 {[%emt 0:00:28]} 72. Rg2 {[%emt 0:00:00]} Kd5 {[%emt 0:04:03]} 1-0

[Event "7th Sharjah Masters 2024"]
[Site "Sharjah"]
[Date "2024.05.16"]
[Round "3.42"]
[White "Erdos, Viktor"]
[Black "Assaubayeva, Bibisara"]
[Result "1/2-1/2"]
[ECO "C78"]
[WhiteElo "2546"]
[BlackElo "2481"]
[Annotator "TA"]
[PlyCount "70"]
[EventDate "2024.05.13"]
[EventType "swiss"]
[EventCountry "UAE"]
[SourceTitle "playchess.com"]
[Source "ChessBase"]
[SourceQuality "1"]
[TimeControl "5400+30"]

{[%evp 14,70,19,4,8,11,47,31,25,22,36,19,26,16,15,13,28,22,18,16,37,19,58,67,146,154,154,48,102,110,220,213,189,58,53,47,56,13,19,20,31,15,24,24,28,19,22,17,16,20,39,27,41,0,0,-25,-11,-26,-10]} 1. e4 {[%emt 1:31:00]} e5 {[%emt 1:31:00]} 2. Nf3 {[%emt 0:00:30]} Nc6 {[%emt 0:00:30]} 3. Bb5 {[%emt 0:00:30]} a6 {[%emt 0:00:30]} 4. Ba4 {[%emt 0:00:30]} Nf6 {[%emt 0:00:30]} 5. O-O {[%emt 0:00:30]} Bc5 {[%emt 0:00:30]} 6. d3 {[%emt 0:00:30]} b5 {[%emt 0:00:30]} 7. Bb3 {[%emt 0:00:30]} O-O {[%emt 0:00:30]} 8. Nc3 {[%emt 0:00:30]} h6 {[%emt 0:00:30]} 9. Nd5 {[%emt 0:00:30]} Re8 {[%emt 0:00:30]} 10. Be3 {[%emt 0:00:30]} d6 {[%emt 0:00:30] White is slightly better.} 11. a4 {[%emt 0:00:30] Black must now prevent Bxc5.} Rb8 {[%emt 0:00:30]} 12. axb5 {[%emt 0:00:30]} axb5 {[%emt 0:00:30]} 13. c3 {[%emt 0:00:30]} Nxd5 {[%emt 0:00:30]} 14. Bxd5 {[%emt 0:00:30]} Qd7 {[%emt 0:00:30]} 15. Qd2 {[%emt 0:00:30][%cal Oe3h6]} Bxe3 {[%emt 0:00:30]} 16. fxe3 {[%emt 0:00:30]} Nd8 {[%emt 0:00:30]} 17. Ra7 {[%emt 0:00:30]} Bb7 {[%emt 0:00:30]} 18. Nh4 {[%emt 0:00:30]} c6 {[%emt 0:00:30]} (18... g6 $14) 19. Bb3 $16 {[%emt 0:00:30] White has more active pieces.} d5 {[%emt 0:00:30]} 20. Nf5 {[%emt 0:00:30]} (20. Qf2 $16) 20... Kh7 {[%emt 0:00:30]} (20... g6 $14) 21. Qf2 {[%emt 0:00:30]} Ra8 {[%emt 0:00:30] [#]} (21... g6 $16) 22. Rxa8 $1 $18 {[%emt 0:00:30]} Bxa8 23. d4 {[%emt 0:00:30]} ({Only move:} 23. Qh4 $18) 23... g6 $14 {[%emt 0:01:00]} 24. Ng3 {[%emt 0:00:30]} Qe7 {[%emt 0:00:30]} 25. Qf6 {[%emt 0:00:30]} Qxf6 {[%emt 0:00:30]} 26. Rxf6 {[%emt 0:00:30]} Kg7 {[%emt 0:00:30]} 27. Rd6 {[%emt 0:00:30][%cal Re4d5]} Nb7 {[%emt 0:00:30]} 28. Rd7 {[%emt 0:00:30]} (28. Rxc6 Na5 29. Rc5 Nxb3 $19) 28... Na5 29. Ba2 {[%emt 0:00:30][%cal Re4d5]} Nc4 {[%emt 0:01:00]} 30. Bxc4 {[%emt 0:00:30]} bxc4 $11 {[%emt 0:00:30] KRB-KRN} 31. Ra7 {[%emt 0:00:30]} exd4 {[%emt 0:00:30]} 32. exd4 {[%emt 0:00:30]} Rb8 {[%emt 0:00:30]} 33. e5 {[%emt 0:00:30]} Bb7 {[%emt 0:00:30]} 34. Kf2 {[%emt 0:00:30]} Bc8 {[%emt 0:00:30]} 35. Ra2 {[%emt 0:00:30]} Be6 {[%emt 0:00:30] Weighted Error Value: White=0.16 (very precise) /Black=0.20 (precise) .  Mistake:       	White=2     	Black=3      Inaccurate:     	White=2     	Black=2      OK:         	White=13    	Black=10     Strong:       	White=1     	---} 1/2-1/2